[Event "*** Titled Tuesday Blitz"]
[Site "Chess.com"]
[Date "2021.03.02"]
[Round "8"]
[White "losersgame"]
[Black "turayev_shahruh17"]
[Result "0-1"]
[WhiteElo "2322"]
[BlackElo "2475"]
[TimeControl "180+1"]
[EndTime "11:29:40 PST"]
[Termination "turayev_shahruh17 won on time"]

1. d4 {[%clk 0:03:00.9]} 1... f5 {[%clk 0:02:52.2]} 2. Nc3 {[%clk 0:03:00.1]}
2... Nf6 {[%clk 0:02:52.1]} 3. Bg5 {[%clk 0:02:59]} 3... g6 {[%clk 0:02:49.9]}
4. f3 {[%clk 0:02:54.2]} 4... Bg7 {[%clk 0:02:48.3]} 5. e4 {[%clk 0:02:53.9]}
5... fxe4 {[%clk 0:02:42.1]} 6. fxe4 {[%clk 0:02:54.1]} 6... O-O {[%clk
0:02:40.8]} 7. Bc4+ {[%clk 0:02:31.2]} 7... Kh8 {[%clk 0:02:38.3]} 8. Nf3 {[%clk
0:02:25.1]} 8... d6 {[%clk 0:02:31.8]} 9. Qd2 {[%clk 0:02:13.8]} 9... Nc6 {[%clk
0:02:28]} 10. O-O-O {[%clk 0:02:12.6]} 10... Bg4 {[%clk 0:02:19]} 11. Bh6 {[%clk
0:02:06.7]} 11... Nh5 {[%clk 0:02:12.5]} 12. Bxg7+ {[%clk 0:02:03.5]} 12... Kxg7
{[%clk 0:02:11.9]} 13. Ng5 {[%clk 0:01:29.6]} 13... e5 {[%clk 0:02:10.8]} 14.
Rdf1 {[%clk 0:01:21.8]} 14... Nf4 {[%clk 0:02:02.2]} 15. Nf7 {[%clk 0:00:59.1]}
15... Qe8 {[%clk 0:01:27.9]} 16. g3 {[%clk 0:00:57.8]} 16... Ne6 {[%clk
0:01:08.7]} 17. Qh6+ {[%clk 0:00:46.5]} 17... Kg8 {[%clk 0:01:08.3]} 18. Ng5
{[%clk 0:00:43.6]} 18... Qe7 {[%clk 0:01:07.6]} 19. Nd5 {[%clk 0:00:28.7]} 19...
Qxg5+ {[%clk 0:01:03.5]} 20. Qxg5 {[%clk 0:00:25.7]} 20... Nxg5 {[%clk
0:01:04.4]} 21. Nf6+ {[%clk 0:00:22.9]} 21... Kg7 {[%clk 0:01:04.2]} 22. Nxg4
{[%clk 0:00:22.5]} 22... Nxd4 {[%clk 0:01:02.7]} 23. c3 {[%clk 0:00:20.8]} 23...
Ndf3 {[%clk 0:00:54.7]} 24. Bd3 {[%clk 0:00:20.3]} 24... h5 {[%clk 0:00:53.2]}
25. Ne3 {[%clk 0:00:20]} 25... c6 {[%clk 0:00:47.1]} 26. h4 {[%clk 0:00:14.1]}
26... Ne6 {[%clk 0:00:46.7]} 27. Kd1 {[%clk 0:00:12.4]} 27... Nc5 {[%clk
0:00:40.7]} 28. Bc2 {[%clk 0:00:12.2]} 28... d5 {[%clk 0:00:38.3]} 29. exd5
{[%clk 0:00:11.8]} 29... cxd5 {[%clk 0:00:39.2]} 30. Nxd5 {[%clk 0:00:11.6]}
30... Rad8 {[%clk 0:00:38.1]} 31. c4 {[%clk 0:00:11.5]} 31... e4 {[%clk
0:00:36.1]} 32. b4 {[%clk 0:00:09.5]} 32... Nd3 {[%clk 0:00:33.6]} 33. Bxd3
{[%clk 0:00:07.7]} 33... exd3 {[%clk 0:00:34.5]} 34. Rf2 {[%clk 0:00:07.3]}
34... Ne5 {[%clk 0:00:33.1]} 35. Rxf8 {[%clk 0:00:04.2]} 35... Rxf8 {[%clk
0:00:34]} 36. Ne3 {[%clk 0:00:03.1]} 36... Rf3 {[%clk 0:00:30.9]} 0-1

[Event "*** Titled Tuesday Blitz"]
[Site "Chess.com"]
[Date "2021.03.02"]
[Round "8"]
[White "Diamantidis_13"]
[Black "eldur16"]
[Result "0-1"]
[WhiteElo "2432"]
[BlackElo "2552"]
[TimeControl "180+1"]
[EndTime "11:29:42 PST"]
[Termination "eldur16 won on time"]

1. d4 {[%clk 0:03:00.9]} 1... Nf6 {[%clk 0:02:59.2]} 2. c4 {[%clk 0:02:59.5]}
2... e6 {[%clk 0:02:58.8]} 3. g3 {[%clk 0:02:59.4]} 3... Bb4+ {[%clk 0:02:57]}
4. Nd2 {[%clk 0:02:57.8]} 4... d5 {[%clk 0:02:56.2]} 5. Bg2 {[%clk 0:02:56]}
5... O-O {[%clk 0:02:55.7]} 6. Nf3 {[%clk 0:02:55.6]} 6... c5 {[%clk 0:02:50.5]}
7. O-O {[%clk 0:02:49.6]} 7... Nc6 {[%clk 0:02:49.1]} 8. cxd5 {[%clk 0:02:42.2]}
8... exd5 {[%clk 0:02:43.8]} 9. a3 {[%clk 0:02:31.6]} 9... Bxd2 {[%clk
0:02:42.6]} 10. Bxd2 {[%clk 0:02:30.3]} 10... cxd4 {[%clk 0:02:41.6]} 11. Bb4
{[%clk 0:01:57]} 11... Re8 {[%clk 0:02:27.4]} 12. Bc5 {[%clk 0:01:37.9]} 12...
Bg4 {[%clk 0:02:15.4]} 13. Bxd4 {[%clk 0:01:36.7]} 13... Nxd4 {[%clk 0:02:07]}
14. Nxd4 {[%clk 0:01:32.9]} 14... Qb6 {[%clk 0:02:06.8]} 15. f3 {[%clk
0:01:00.4]} 15... Bd7 {[%clk 0:02:03.2]} 16. Qd2 {[%clk 0:01:00]} 16... a5
{[%clk 0:01:47.8]} 17. Rac1 {[%clk 0:00:52.8]} 17... Rac8 {[%clk 0:01:43.1]} 18.
e3 {[%clk 0:00:26.5]} 18... h6 {[%clk 0:01:33.7]} 19. Rxc8 {[%clk 0:00:22.3]}
19... Rxc8 {[%clk 0:01:32.8]} 20. Rc1 {[%clk 0:00:23.2]} 20... Rxc1+ {[%clk
0:01:18.2]} 21. Qxc1 {[%clk 0:00:24.1]} 21... Bc6 {[%clk 0:01:11]} 22. Bf1
{[%clk 0:00:21.5]} 22... Nd7 {[%clk 0:01:02.6]} 23. Qc3 {[%clk 0:00:20.5]} 23...
Nc5 {[%clk 0:00:59.5]} 24. b4 {[%clk 0:00:15.9]} 24... axb4 {[%clk 0:00:57.9]}
25. Qxb4 {[%clk 0:00:16.1]} 25... Qa7 {[%clk 0:00:49.4]} 26. Kf2 {[%clk
0:00:13.7]} 26... Bd7 {[%clk 0:00:45.9]} 27. Be2 {[%clk 0:00:08.6]} 27... b6
{[%clk 0:00:44.3]} 28. h4 {[%clk 0:00:07.1]} 28... Qc7 {[%clk 0:00:43]} 29. Qd2
{[%clk 0:00:02.8]} 29... Qd6 {[%clk 0:00:40.9]} 30. Qb4 {[%clk 0:00:02.8]} 30...
g5 {[%clk 0:00:37.1]} 31. hxg5 {[%clk 0:00:02.4]} 31... hxg5 {[%clk 0:00:36.9]}
32. Kg2 {[%clk 0:00:03.1]} 32... g4 {[%clk 0:00:24.7]} 33. fxg4 {[%clk
0:00:01.4]} 33... Qh6 {[%clk 0:00:22.1]} 0-1

[Event "*** Titled Tuesday Blitz"]
[Site "Chess.com"]
[Date "2021.03.02"]
[Round "8"]
[White "SergeyShtyka"]
[Black "FlySooHigh"]
[Result "0-1"]
[WhiteElo "2464"]
[BlackElo "2690"]
[TimeControl "180+1"]
[EndTime "11:29:44 PST"]
[Termination "FlySooHigh won by resignation"]

1. e4 {[%clk 0:02:59.7]} 1... c5 {[%clk 0:02:59.5]} 2. Nf3 {[%clk 0:02:59.7]}
2... d6 {[%clk 0:03:00]} 3. d4 {[%clk 0:02:59.8]} 3... cxd4 {[%clk 0:03:00.9]}
4. Nxd4 {[%clk 0:03:00.5]} 4... Nf6 {[%clk 0:03:01.4]} 5. Nc3 {[%clk 0:03:00.9]}
5... g6 {[%clk 0:03:02.1]} 6. f4 {[%clk 0:03:01.2]} 6... Nc6 {[%clk 0:03:01.8]}
7. Nxc6 {[%clk 0:03:01.5]} 7... bxc6 {[%clk 0:03:02.7]} 8. e5 {[%clk 0:03:02.1]}
8... Nd7 {[%clk 0:03:03.1]} 9. exd6 {[%clk 0:03:02]} 9... exd6 {[%clk 0:03:04]}
10. Qd4 {[%clk 0:03:02.2]} 10... Nf6 {[%clk 0:03:04.5]} 11. Ne4 {[%clk
0:03:00.7]} 11... Be7 {[%clk 0:03:02.6]} 12. Nxf6+ {[%clk 0:02:59.2]} 12... Bxf6
{[%clk 0:03:03.5]} 13. Qe4+ {[%clk 0:02:59.7]} 13... Qe7 {[%clk 0:02:57.4]} 14.
Qxe7+ {[%clk 0:02:57.4]} 14... Kxe7 {[%clk 0:02:56.6]} 15. Bd3 {[%clk
0:02:52.8]} 15... Rb8 {[%clk 0:02:53.9]} 16. c3 {[%clk 0:02:50.2]} 16... Be6
{[%clk 0:02:31.4]} 17. Kd2 {[%clk 0:02:45.6]} 17... a5 {[%clk 0:02:27]} 18. Re1
{[%clk 0:02:18.7]} 18... Rb6 {[%clk 0:02:19.4]} 19. Kc2 {[%clk 0:02:08.7]} 19...
Rhb8 {[%clk 0:02:17.8]} 20. f5 {[%clk 0:02:02.1]} 20... gxf5 {[%clk 0:02:16.2]}
21. Bxf5 {[%clk 0:02:02.1]} 21... h5 {[%clk 0:02:16.1]} 22. Bxe6 {[%clk
0:01:56.8]} 22... fxe6 {[%clk 0:02:17]} 23. b3 {[%clk 0:01:55.4]} 23... Rg8
{[%clk 0:01:51.7]} 24. g3 {[%clk 0:01:50.4]} 24... h4 {[%clk 0:01:49.8]} 25. Rg1
{[%clk 0:01:39.9]} 25... Rb5 {[%clk 0:01:33.1]} 26. Bd2 {[%clk 0:01:39.1]} 26...
Rf5 {[%clk 0:01:28.2]} 27. gxh4 {[%clk 0:01:36.1]} 27... Rxg1 {[%clk 0:01:27.2]}
28. Rxg1 {[%clk 0:01:35.6]} 28... Rf2 {[%clk 0:01:27.3]} 29. h5 {[%clk
0:01:12.8]} 29... Rxh2 {[%clk 0:01:26.9]} 30. h6 {[%clk 0:01:12.9]} 30... Kf7
{[%clk 0:01:27.3]} 31. Kd3 {[%clk 0:01:09.2]} 31... e5 {[%clk 0:01:20.2]} 32. c4
{[%clk 0:01:09.1]} 32... d5 {[%clk 0:01:19.2]} 33. cxd5 {[%clk 0:01:02.9]} 33...
cxd5 {[%clk 0:01:20.1]} 34. Bxa5 {[%clk 0:00:50.2]} 34... Rxa2 {[%clk
0:01:19.2]} 35. Bd2 {[%clk 0:00:33.3]} 35... e4+ {[%clk 0:01:12]} 36. Ke3 {[%clk
0:00:23.2]} 36... Rb2 {[%clk 0:00:59.1]} 37. h7 {[%clk 0:00:22.3]} 37... Rxb3+
{[%clk 0:00:58]} 38. Kf4 {[%clk 0:00:19.7]} 38... Rh3 {[%clk 0:00:56.9]} 39. Rb1
{[%clk 0:00:13.9]} 39... Rxh7 {[%clk 0:00:55.8]} 40. Rb7+ {[%clk 0:00:13.4]}
40... Kg6 {[%clk 0:00:56.1]} 41. Rxh7 {[%clk 0:00:07.6]} 41... Kxh7 {[%clk
0:00:56.1]} 42. Kf5 {[%clk 0:00:08.5]} 42... Kg7 {[%clk 0:00:56.3]} 43. Ke6
{[%clk 0:00:04.9]} 43... d4 {[%clk 0:00:55.9]} 44. Kd5 {[%clk 0:00:05.2]} 44...
e3 {[%clk 0:00:56]} 45. Be1 {[%clk 0:00:03.2]} 45... d3 {[%clk 0:00:55.3]} 46.
Ke4 {[%clk 0:00:03.8]} 46... d2 {[%clk 0:00:55.4]} 47. Bxd2 {[%clk 0:00:04.4]}
47... exd2 {[%clk 0:00:56.2]} 48. Kf5 {[%clk 0:00:03.5]} 48... d1=Q {[%clk
0:00:57.1]} 49. Ke4 {[%clk 0:00:03.1]} 49... Qd4+ {[%clk 0:00:56.9]} 0-1

[Event "*** Titled Tuesday Blitz"]
[Site "Chess.com"]
[Date "2021.03.02"]
[Round "8"]
[White "Alniro4"]
[Black "akanga001"]
[Result "0-1"]
[WhiteElo "2250"]
[BlackElo "1974"]
[TimeControl "180+1"]
[EndTime "11:29:44 PST"]
[Termination "akanga001 won on time"]

1. e4 {[%clk 0:03:00.9]} 1... c6 {[%clk 0:02:59.4]} 2. d4 {[%clk 0:02:59.7]}
2... d5 {[%clk 0:03:00.3]} 3. Nd2 {[%clk 0:02:59.5]} 3... dxe4 {[%clk
0:02:59.9]} 4. Nxe4 {[%clk 0:02:59.5]} 4... Nf6 {[%clk 0:03:00.8]} 5. Nxf6+
{[%clk 0:02:59]} 5... gxf6 {[%clk 0:03:01.7]} 6. c3 {[%clk 0:02:57]} 6... Bf5
{[%clk 0:03:00.5]} 7. Nf3 {[%clk 0:02:52.1]} 7... Qd5 {[%clk 0:02:57.3]} 8. g3
{[%clk 0:02:41.1]} 8... Nd7 {[%clk 0:02:47.2]} 9. Bg2 {[%clk 0:02:39.9]} 9...
Qc4 {[%clk 0:02:39.9]} 10. Qb3 {[%clk 0:02:27.3]} 10... Qxb3 {[%clk 0:02:34.5]}
11. axb3 {[%clk 0:02:26]} 11... Bd3 {[%clk 0:02:33.2]} 12. Bf4 {[%clk 0:02:20]}
12... a6 {[%clk 0:02:29.7]} 13. O-O-O {[%clk 0:02:14.7]} 13... Be4 {[%clk
0:02:23.2]} 14. Rhe1 {[%clk 0:02:07.4]} 14... f5 {[%clk 0:02:21.5]} 15. Nh4
{[%clk 0:01:58.1]} 15... Bxg2 {[%clk 0:02:19.1]} 16. Nxg2 {[%clk 0:01:57.1]}
16... e6 {[%clk 0:02:17.7]} 17. Ne3 {[%clk 0:01:51.7]} 17... O-O-O {[%clk
0:02:16.5]} 18. Nc4 {[%clk 0:01:49.3]} 18... Be7 {[%clk 0:02:09]} 19. h4 {[%clk
0:01:37.6]} 19... h5 {[%clk 0:02:06.7]} 20. Bd6 {[%clk 0:01:29.7]} 20... Bf6
{[%clk 0:01:56.9]} 21. Bf4 {[%clk 0:01:27]} 21... Be7 {[%clk 0:01:53.6]} 22. b4
{[%clk 0:01:06.5]} 22... b5 {[%clk 0:01:51.7]} 23. Na5 {[%clk 0:01:01.6]} 23...
Nb8 {[%clk 0:01:42.3]} 24. Bxb8 {[%clk 0:00:58.9]} 24... Kxb8 {[%clk 0:01:39.9]}
25. Nxc6+ {[%clk 0:00:56.7]} 25... Kb7 {[%clk 0:01:38.9]} 26. Nxd8+ {[%clk
0:00:46.6]} 26... Bxd8 {[%clk 0:01:36.8]} 27. d5 {[%clk 0:00:44.3]} 27... Re8
{[%clk 0:01:32.4]} 28. dxe6 {[%clk 0:00:42.6]} 28... fxe6 {[%clk 0:01:31.3]} 29.
Rd6 {[%clk 0:00:37.4]} 29... e5 {[%clk 0:01:30]} 30. Rh6 {[%clk 0:00:32.8]}
30... f4 {[%clk 0:01:27.9]} 31. gxf4 {[%clk 0:00:30.3]} 31... Bxh4 {[%clk
0:01:26.8]} 32. Rxh5 {[%clk 0:00:29.1]} 32... Bxf2 {[%clk 0:01:25.7]} 33. Re2
{[%clk 0:00:27.6]} 33... Bg3 {[%clk 0:01:20.7]} 34. Rexe5 {[%clk 0:00:24.6]}
34... Bxf4+ {[%clk 0:01:18.5]} 35. Kc2 {[%clk 0:00:23.3]} 35... Rxe5 {[%clk
0:01:17.5]} 36. Rxe5 {[%clk 0:00:21]} 36... Bxe5 {[%clk 0:01:16.6]} 37. Kd3
{[%clk 0:00:20]} 37... Kc6 {[%clk 0:01:15.9]} 38. Ke4 {[%clk 0:00:19.7]} 38...
Bh2 {[%clk 0:01:14.5]} 39. Kd4 {[%clk 0:00:17.5]} 39... Bg1+ {[%clk 0:01:13.5]}
40. Ke4 {[%clk 0:00:17.3]} 40... Bf2 {[%clk 0:01:12.1]} 41. b3 {[%clk 0:00:15]}
41... Be1 {[%clk 0:01:10.5]} 42. Kd4 {[%clk 0:00:13.6]} 42... Bd2 {[%clk
0:01:06.4]} 43. Kd3 {[%clk 0:00:13.1]} 43... Be1 {[%clk 0:01:05.5]} 44. Kd4
{[%clk 0:00:12.1]} 44... Kd6 {[%clk 0:01:03.5]} 45. Kd3 {[%clk 0:00:10]} 45...
Kd5 {[%clk 0:01:02.8]} 46. c4+ {[%clk 0:00:03.1]} 46... bxc4+ {[%clk 0:01:01.1]}
0-1

[Event "*** Titled Tuesday Blitz"]
[Site "Chess.com"]
[Date "2021.03.02"]
[Round "8"]
[White "chessdjw"]
[Black "heyjohnnypark"]
[Result "1-0"]
[WhiteElo "2753"]
[BlackElo "2611"]
[TimeControl "180+1"]
[EndTime "11:29:45 PST"]
[Termination "chessdjw won by resignation"]

1. d4 {[%clk 0:03:00.9]} 1... Nf6 {[%clk 0:02:59.7]} 2. c4 {[%clk 0:03:01.4]}
2... g6 {[%clk 0:03:00.1]} 3. Nc3 {[%clk 0:03:00.8]} 3... d5 {[%clk 0:03:00.3]}
4. cxd5 {[%clk 0:02:56]} 4... Nxd5 {[%clk 0:03:00.7]} 5. e4 {[%clk 0:02:56.7]}
5... Nxc3 {[%clk 0:03:01]} 6. bxc3 {[%clk 0:02:57.6]} 6... Bg7 {[%clk
0:03:01.5]} 7. Bc4 {[%clk 0:02:57.8]} 7... O-O {[%clk 0:02:59.4]} 8. Ne2 {[%clk
0:02:57.6]} 8... c5 {[%clk 0:02:57.8]} 9. O-O {[%clk 0:02:58.2]} 9... Nc6 {[%clk
0:02:56.2]} 10. Be3 {[%clk 0:02:58.8]} 10... Qc7 {[%clk 0:02:56.6]} 11. Rc1
{[%clk 0:02:57.4]} 11... Rd8 {[%clk 0:02:56.9]} 12. Bf4 {[%clk 0:02:43.7]} 12...
Qd7 {[%clk 0:02:54.8]} 13. dxc5 {[%clk 0:02:36.4]} 13... Qe8 {[%clk 0:02:53.8]}
14. Qc2 {[%clk 0:02:29.7]} 14... Ne5 {[%clk 0:02:42]} 15. Bd5 {[%clk 0:02:22.5]}
15... e6 {[%clk 0:02:34]} 16. Bb3 {[%clk 0:02:22.2]} 16... Qc6 {[%clk
0:02:16.2]} 17. Bg5 {[%clk 0:02:07.8]} 17... Re8 {[%clk 0:01:56.5]} 18. Ba4
{[%clk 0:02:05.4]} 18... b5 {[%clk 0:01:32]} 19. cxb6 {[%clk 0:02:03.9]} 19...
Qxb6 {[%clk 0:01:32.6]} 20. Bxe8 {[%clk 0:01:59.8]} 20... Ba6 {[%clk 0:01:33.1]}
21. Ba4 {[%clk 0:01:53.7]} 21... Bd3 {[%clk 0:01:32.8]} 22. Qd2 {[%clk
0:01:46.1]} 22... Qa6 {[%clk 0:01:33.2]} 23. Bd1 {[%clk 0:01:40.7]} 23... Qc4
{[%clk 0:01:14.1]} 24. Re1 {[%clk 0:01:32.6]} 24... Bxe4 {[%clk 0:00:50.7]} 25.
Bb3 {[%clk 0:01:28.9]} 25... Qc6 {[%clk 0:00:45.3]} 26. Nd4 {[%clk 0:01:28.3]}
26... Qb7 {[%clk 0:00:45.1]} 27. f3 {[%clk 0:01:10.5]} 27... Bd5 {[%clk
0:00:39.3]} 28. Bxd5 {[%clk 0:00:38.9]} 28... Qxd5 {[%clk 0:00:38.3]} 29. Bh4
{[%clk 0:00:29.4]} 29... Nc4 {[%clk 0:00:32]} 30. Qe2 {[%clk 0:00:24.9]} 30...
Bh6 {[%clk 0:00:26.3]} 31. Rcd1 {[%clk 0:00:22.9]} 31... Rb8 {[%clk 0:00:20.3]}
32. Bf2 {[%clk 0:00:19.5]} 32... Rb2 {[%clk 0:00:19.8]} 33. Qe4 {[%clk
0:00:17.8]} 33... Qg5 {[%clk 0:00:16.5]} 34. Nxe6 {[%clk 0:00:16.6]} 34... Qb5
{[%clk 0:00:06.7]} 35. Rd8+ {[%clk 0:00:15.9]} 1-0

[Event "*** Titled Tuesday Blitz"]
[Site "Chess.com"]
[Date "2021.03.02"]
[Round "8"]
[White "PowerThinking2650"]
[Black "rachidhuilda"]
[Result "1-0"]
[WhiteElo "2454"]
[BlackElo "2291"]
[TimeControl "180+1"]
[EndTime "11:29:45 PST"]
[Termination "PowerThinking2650 won by checkmate"]

1. e4 {[%clk 0:03:00.9]} 1... d5 {[%clk 0:02:54.4]} 2. exd5 {[%clk 0:03:00.4]}
2... Qxd5 {[%clk 0:02:54.1]} 3. Nc3 {[%clk 0:03:00.4]} 3... Qa5 {[%clk 0:02:54]}
4. d4 {[%clk 0:03:00.9]} 4... c6 {[%clk 0:02:54.5]} 5. Nf3 {[%clk 0:03:00.9]}
5... Nf6 {[%clk 0:02:55.1]} 6. Bc4 {[%clk 0:03:00.1]} 6... Bf5 {[%clk 0:02:55]}
7. Bd2 {[%clk 0:02:59.5]} 7... e6 {[%clk 0:02:55.2]} 8. Nd5 {[%clk 0:02:59.3]}
8... Qd8 {[%clk 0:02:54.6]} 9. Nxf6+ {[%clk 0:02:59.5]} 9... gxf6 {[%clk
0:02:55.2]} 10. Qe2 {[%clk 0:02:59]} 10... Bxc2 {[%clk 0:02:53.3]} 11. Bc3
{[%clk 0:02:19.8]} 11... Bg6 {[%clk 0:02:46]} 12. Nh4 {[%clk 0:02:19]} 12... Bg7
{[%clk 0:02:36.5]} 13. Nxg6 {[%clk 0:02:09.9]} 13... hxg6 {[%clk 0:02:36.1]} 14.
O-O-O {[%clk 0:02:08.4]} 14... Nd7 {[%clk 0:01:49.7]} 15. h4 {[%clk 0:01:59]}
15... Nb6 {[%clk 0:01:39.2]} 16. Bb3 {[%clk 0:01:53.5]} 16... Nd5 {[%clk
0:01:36.7]} 17. g4 {[%clk 0:01:50.3]} 17... Nxc3 {[%clk 0:01:00.1]} 18. bxc3
{[%clk 0:01:51.2]} 18... Qa5 {[%clk 0:00:59.6]} 19. Kb2 {[%clk 0:01:43.2]} 19...
O-O-O {[%clk 0:00:59.3]} 20. h5 {[%clk 0:01:41.6]} 20... gxh5 {[%clk 0:00:59.3]}
21. gxh5 {[%clk 0:01:41.3]} 21... f5 {[%clk 0:00:50.7]} 22. h6 {[%clk
0:01:06.2]} 22... Rxh6 {[%clk 0:00:45]} 23. Rxh6 {[%clk 0:01:04.1]} 23... Bxh6
{[%clk 0:00:45.2]} 24. Bxe6+ {[%clk 0:01:04]} 24... fxe6 {[%clk 0:00:45.4]} 25.
Qxe6+ {[%clk 0:01:03.6]} 25... Kb8 {[%clk 0:00:44.9]} 26. Qxh6 {[%clk
0:01:02.5]} 26... Qb5+ {[%clk 0:00:29.7]} 27. Ka1 {[%clk 0:01:00.7]} 27... Qe2
{[%clk 0:00:19.9]} 28. Qf4+ {[%clk 0:00:52.5]} 28... Ka8 {[%clk 0:00:18.1]} 29.
Rd2 {[%clk 0:00:51.1]} 29... Qf1+ {[%clk 0:00:15.7]} 30. Kb2 {[%clk 0:00:50.8]}
30... Qb5+ {[%clk 0:00:16.2]} 31. Kc1 {[%clk 0:00:47.7]} 31... Qc4 {[%clk
0:00:14.7]} 32. Qe3 {[%clk 0:00:40.8]} 32... a5 {[%clk 0:00:12.7]} 33. Rb2
{[%clk 0:00:35.4]} 33... Rd5 {[%clk 0:00:08.7]} 34. Kd2 {[%clk 0:00:21.7]} 34...
Ka7 {[%clk 0:00:08]} 35. Qe7 {[%clk 0:00:17.7]} 35... Qf1 {[%clk 0:00:03.5]} 36.
Qxb7# {[%clk 0:00:17.4]} 1-0

[Event "*** Titled Tuesday Blitz"]
[Site "Chess.com"]
[Date "2021.03.02"]
[Round "8"]
[White "Ghost_Pepper"]
[Black "ellennilssen"]
[Result "0-1"]
[WhiteElo "2367"]
[BlackElo "2288"]
[TimeControl "180+1"]
[EndTime "11:29:45 PST"]
[Termination "ellennilssen won by resignation"]

1. e4 {[%clk 0:03:00.9]} 1... e6 {[%clk 0:02:57.7]} 2. d4 {[%clk 0:03:00.4]}
2... d5 {[%clk 0:02:57.7]} 3. Nc3 {[%clk 0:03:01]} 3... Bb4 {[%clk 0:02:56]} 4.
exd5 {[%clk 0:02:59.7]} 4... exd5 {[%clk 0:02:55.9]} 5. Bd3 {[%clk 0:03:00.2]}
5... Nc6 {[%clk 0:02:55.6]} 6. a3 {[%clk 0:03:00.1]} 6... Bd6 {[%clk 0:02:52.5]}
7. Nge2 {[%clk 0:02:58.5]} 7... Nge7 {[%clk 0:02:51.6]} 8. Nb5 {[%clk
0:02:57.9]} 8... Bg4 {[%clk 0:02:45.5]} 9. f3 {[%clk 0:02:54.9]} 9... Bh5 {[%clk
0:02:43.2]} 10. Nxd6+ {[%clk 0:02:53.3]} 10... Qxd6 {[%clk 0:02:44.1]} 11. Nf4
{[%clk 0:02:51.6]} 11... Bg6 {[%clk 0:02:42.4]} 12. Be3 {[%clk 0:02:38.9]} 12...
Nf5 {[%clk 0:02:34]} 13. Bxf5 {[%clk 0:02:33]} 13... Bxf5 {[%clk 0:02:34.9]} 14.
Qd2 {[%clk 0:02:32.1]} 14... O-O-O {[%clk 0:02:20.6]} 15. g4 {[%clk 0:02:29.5]}
15... Bd7 {[%clk 0:02:12.2]} 16. O-O-O {[%clk 0:02:28.7]} 16... Kb8 {[%clk
0:02:11.4]} 17. Kb1 {[%clk 0:02:28.7]} 17... Rde8 {[%clk 0:02:08.8]} 18. Nd3
{[%clk 0:02:28.5]} 18... Re7 {[%clk 0:02:03.6]} 19. Bg5 {[%clk 0:02:21.2]} 19...
f6 {[%clk 0:02:01.9]} 20. Bf4 {[%clk 0:02:21.2]} 20... Qe6 {[%clk 0:01:56.5]}
21. Nc5 {[%clk 0:02:21]} 21... Qf7 {[%clk 0:01:55.7]} 22. Qd3 {[%clk 0:02:19.4]}
22... Bc8 {[%clk 0:01:47.9]} 23. Qb5 {[%clk 0:02:12.3]} 23... Ka8 {[%clk
0:01:40]} 24. a4 {[%clk 0:02:04.8]} 24... Nd8 {[%clk 0:01:16.1]} 25. Bg3 {[%clk
0:01:47.5]} 25... Ne6 {[%clk 0:01:10.9]} 26. h4 {[%clk 0:01:21.1]} 26... Nxc5
{[%clk 0:01:10]} 27. dxc5 {[%clk 0:01:21]} 27... c6 {[%clk 0:01:05]} 28. Qb4
{[%clk 0:01:20.7]} 28... Rhe8 {[%clk 0:01:05.5]} 29. Qf4 {[%clk 0:01:19.9]}
29... Bd7 {[%clk 0:00:54.9]} 30. Rd3 {[%clk 0:01:19.1]} 30... h6 {[%clk
0:00:44.7]} 31. h5 {[%clk 0:01:18.5]} 31... f5 {[%clk 0:00:43.8]} 32. g5 {[%clk
0:01:13.8]} 32... hxg5 {[%clk 0:00:28.2]} 33. Qxg5 {[%clk 0:01:14.7]} 33... Re2
{[%clk 0:00:25.6]} 34. Qf4 {[%clk 0:01:11.5]} 34... Qe7 {[%clk 0:00:18.9]} 35.
Rb3 {[%clk 0:01:09]} 35... Be6 {[%clk 0:00:09]} 36. Rh2 {[%clk 0:00:57.4]} 36...
Rxh2 {[%clk 0:00:08.1]} 37. Bxh2 {[%clk 0:00:58.3]} 37... d4 {[%clk 0:00:09]}
38. Rd3 {[%clk 0:00:57.4]} 38... Bc4 {[%clk 0:00:08]} 39. Rd1 {[%clk 0:00:56.3]}
39... Qe2 {[%clk 0:00:07.8]} 40. Rc1 {[%clk 0:00:55.4]} 40... Qe3 {[%clk
0:00:08.1]} 41. Qd6 {[%clk 0:00:54.9]} 41... d3 {[%clk 0:00:07.4]} 42. Bf4
{[%clk 0:00:49]} 42... dxc2+ {[%clk 0:00:06.7]} 43. Ka1 {[%clk 0:00:48.6]} 43...
Qb3 {[%clk 0:00:05.7]} 0-1

[Event "*** Titled Tuesday Blitz"]
[Site "Chess.com"]
[Date "2021.03.02"]
[Round "8"]
[White "kuba2006"]
[Black "PawnEatingZombie"]
[Result "1-0"]
[WhiteElo "2384"]
[BlackElo "2208"]
[TimeControl "180+1"]
[EndTime "11:29:46 PST"]
[Termination "kuba2006 won on time"]

1. b3 {[%clk 0:03:00.9]} 1... e5 {[%clk 0:02:58.7]} 2. Bb2 {[%clk 0:03:01.3]}
2... Nc6 {[%clk 0:02:59.1]} 3. e3 {[%clk 0:03:01.2]} 3... d5 {[%clk 0:02:58.7]}
4. Bb5 {[%clk 0:03:00.8]} 4... Ne7 {[%clk 0:02:53.7]} 5. Bxe5 {[%clk 0:02:58.7]}
5... a6 {[%clk 0:02:53.8]} 6. Bxc6+ {[%clk 0:02:58.3]} 6... Nxc6 {[%clk
0:02:54.7]} 7. Bb2 {[%clk 0:02:58]} 7... Qg5 {[%clk 0:02:54.4]} 8. Qf3 {[%clk
0:02:38]} 8... Bg4 {[%clk 0:02:53.1]} 9. Qf4 {[%clk 0:02:35.3]} 9... Qg6 {[%clk
0:02:43.5]} 10. Be5 {[%clk 0:01:39.9]} 10... Qxc2 {[%clk 0:02:03.2]} 11. Nc3
{[%clk 0:01:31.1]} 11... Nxe5 {[%clk 0:01:42.4]} 12. Qxe5+ {[%clk 0:01:32]}
12... Be6 {[%clk 0:01:41.8]} 13. Qxc7 {[%clk 0:01:06.9]} 13... Bb4 {[%clk
0:01:22]} 14. Qxb7 {[%clk 0:00:55.7]} 14... Bxc3 {[%clk 0:01:10.1]} 15. Qxa8+
{[%clk 0:00:55.2]} 15... Ke7 {[%clk 0:01:10.4]} 16. Qb7+ {[%clk 0:00:42.6]}
16... Kf6 {[%clk 0:01:09.4]} 17. Rd1 {[%clk 0:00:32.1]} 17... Bxd2+ {[%clk
0:00:43]} 18. Rxd2 {[%clk 0:00:30.8]} 18... Qc1+ {[%clk 0:00:43.6]} 19. Rd1
{[%clk 0:00:30.8]} 19... Qc3+ {[%clk 0:00:42.6]} 20. Kf1 {[%clk 0:00:30.6]}
20... Qc2 {[%clk 0:00:28.1]} 21. Re1 {[%clk 0:00:28.6]} 21... Bf5 {[%clk
0:00:23.7]} 22. Ne2 {[%clk 0:00:20.7]} 22... Bd3 {[%clk 0:00:22.4]} 23. g3
{[%clk 0:00:16.4]} 23... Be4 {[%clk 0:00:16.3]} 24. Rg1 {[%clk 0:00:15.1]} 24...
Rc8 {[%clk 0:00:12.7]} 25. Qb6+ {[%clk 0:00:14.7]} 25... Ke7 {[%clk 0:00:12]}
26. Qd4 {[%clk 0:00:13.1]} 26... Qxa2 {[%clk 0:00:09.5]} 27. f3 {[%clk
0:00:11.5]} 27... Bb1 {[%clk 0:00:03.9]} 28. Kf2 {[%clk 0:00:10.5]} 28... Rc2
{[%clk 0:00:02.9]} 29. Qe5+ {[%clk 0:00:09.9]} 29... Kf8 {[%clk 0:00:02.6]} 30.
Qd6+ {[%clk 0:00:10]} 30... Ke8 {[%clk 0:00:02.2]} 31. Qxd5 {[%clk 0:00:09.3]}
1-0